[Event "*** Biggest EVER Titled Tuesday"]
[Site "Chess.com"]
[Date "2018.04.17"]
[Round "10"]
[White "Winehouse83"]
[Black "EndgameGrinder"]
[Result "0-1"]
[WhiteElo "2335"]
[BlackElo "2466"]
[TimeControl "180+2"]
[EndTime "15:25:55 PDT"]
[Termination "EndgameGrinder won by resignation"]

1. e4 {[%clk 0:03:01.3]} 1... c5 {[%clk 0:03:00.6]} 2. Nf3 {[%clk 0:03:02]} 2...
e6 {[%clk 0:03:01.8]} 3. g3 {[%clk 0:02:51.7]} 3... Nc6 {[%clk 0:03:01.8]} 4.
Bg2 {[%clk 0:02:52.1]} 4... Nf6 {[%clk 0:03:03.4]} 5. d3 {[%clk 0:02:45.2]} 5...
Be7 {[%clk 0:03:03.7]} 6. O-O {[%clk 0:02:42.5]} 6... O-O {[%clk 0:02:59]} 7. e5
{[%clk 0:02:39.5]} 7... Ng4 {[%clk 0:02:59.7]} 8. Re1 {[%clk 0:02:40.2]} 8...
Qc7 {[%clk 0:03:00.6]} 9. Qe2 {[%clk 0:02:38.7]} 9... d6 {[%clk 0:02:55.7]} 10.
exd6 {[%clk 0:02:39.2]} 10... Bxd6 {[%clk 0:02:56.7]} 11. Nc3 {[%clk 0:02:40.6]}
11... a6 {[%clk 0:02:44.4]} 12. Ne4 {[%clk 0:02:40.3]} 12... Be7 {[%clk
0:02:45.3]} 13. Nfg5 {[%clk 0:02:40.8]} 13... Nf6 {[%clk 0:02:30.9]} 14. c3
{[%clk 0:02:24.7]} 14... e5 {[%clk 0:02:17.1]} 15. Be3 {[%clk 0:01:53.6]} 15...
Nxe4 {[%clk 0:02:00.8]} 16. Bxe4 {[%clk 0:01:47.5]} 16... h6 {[%clk 0:01:48.4]}
17. Qh5 {[%clk 0:01:38]} 17... Qd6 {[%clk 0:01:26.6]} 18. Bh7+ {[%clk
0:00:55.6]} 18... Kh8 {[%clk 0:01:26.4]} 19. Ne4 {[%clk 0:00:56.4]} 19... Qe6
{[%clk 0:01:18.4]} 20. Bxc5 {[%clk 0:00:51.9]} 20... Kxh7 {[%clk 0:01:06.4]} 21.
Ng5+ {[%clk 0:00:51.4]} 21... Bxg5 {[%clk 0:01:07.9]} 22. Bxf8 {[%clk
0:00:52.4]} 22... Qg6 {[%clk 0:01:00.1]} 23. Qxg6+ {[%clk 0:00:47.9]} 23... Kxg6
{[%clk 0:01:02]} 24. Bd6 {[%clk 0:00:47.3]} 24... Bf5 {[%clk 0:00:59.1]} 25.
Bxe5 {[%clk 0:00:44]} 25... Nxe5 {[%clk 0:01:01]} 26. Rxe5 {[%clk 0:00:45.8]}
26... Bxd3 {[%clk 0:01:01.9]} 27. Rd1 {[%clk 0:00:47.2]} 27... Bb5 {[%clk
0:01:02.5]} 28. Rd6+ {[%clk 0:00:46.8]} 28... Kh7 {[%clk 0:00:56.7]} 29. f4
{[%clk 0:00:45.9]} 29... Bf6 {[%clk 0:00:55.8]} 30. Re1 {[%clk 0:00:46.5]} 30...
Kg8 {[%clk 0:00:45]} 31. Re3 {[%clk 0:00:47.4]} 31... Kf8 {[%clk 0:00:45.3]} 32.
b3 {[%clk 0:00:47.1]} 32... Rd8 {[%clk 0:00:43.9]} 33. Rxd8+ {[%clk 0:00:45.7]}
33... Bxd8 {[%clk 0:00:45.8]} 34. Kg2 {[%clk 0:00:46.8]} 34... Bc6+ {[%clk
0:00:46.4]} 35. Kh3 {[%clk 0:00:47.4]} 35... f5 {[%clk 0:00:39.1]} 36. c4 {[%clk
0:00:46.2]} 36... Kf7 {[%clk 0:00:39.7]} 37. g4 {[%clk 0:00:45]} 37... fxg4+
{[%clk 0:00:37.4]} 38. Kxg4 {[%clk 0:00:46.9]} 38... Bd7+ {[%clk 0:00:38.6]} 39.
Kf3 {[%clk 0:00:46.3]} 39... Bc7 {[%clk 0:00:36.7]} 40. a4 {[%clk 0:00:42.9]}
40... a5 {[%clk 0:00:36.5]} 41. Rd3 {[%clk 0:00:41.2]} 41... Bc6+ {[%clk
0:00:34.6]} 42. Kg4 {[%clk 0:00:42.4]} 42... g6 {[%clk 0:00:35.8]} 43. h4 {[%clk
0:00:42.7]} 43... Kf6 {[%clk 0:00:33]} 44. h5 {[%clk 0:00:40.4]} 44... gxh5+
{[%clk 0:00:34]} 45. Kxh5 {[%clk 0:00:41.7]} 45... Bxf4 {[%clk 0:00:35.5]} 46.
Rd4 {[%clk 0:00:39.3]} 46... Bf3+ {[%clk 0:00:28.1]} 47. Kh4 {[%clk 0:00:37.6]}
47... Ke5 {[%clk 0:00:29.6]} 48. Rd7 {[%clk 0:00:33.1]} 48... b6 {[%clk
0:00:24.7]} 49. Rb7 {[%clk 0:00:29.9]} 49... Be3 {[%clk 0:00:24.7]} 50. Re7+
{[%clk 0:00:30.6]} 50... Kd4 {[%clk 0:00:25.6]} 51. Re6 {[%clk 0:00:29.3]} 51...
Kd3 {[%clk 0:00:21.4]} 52. Kg3 {[%clk 0:00:27.6]} 52... Bd1 {[%clk 0:00:21.9]}
53. c5 {[%clk 0:00:20.2]} 53... Bxc5 {[%clk 0:00:21]} 54. Rxh6 {[%clk
0:00:15.4]} 54... Bxb3 {[%clk 0:00:21.8]} 55. Rh4 {[%clk 0:00:13.2]} 55... Kc3
{[%clk 0:00:20.7]} 56. Kf3 {[%clk 0:00:14.1]} 56... Kb2 {[%clk 0:00:21.9]} 57.
Ke4 {[%clk 0:00:15.2]} 57... Ka3 {[%clk 0:00:23.3]} 58. Kd3 {[%clk 0:00:15.9]}
58... Bxa4 {[%clk 0:00:23.7]} 59. Kc3 {[%clk 0:00:16.6]} 59... Bb3 {[%clk
0:00:23.9]} 60. Rh1 {[%clk 0:00:14.3]} 60... Bb4+ {[%clk 0:00:23.7]} 61. Kd4
{[%clk 0:00:15.6]} 61... Kb2 {[%clk 0:00:22.9]} 62. Kd3 {[%clk 0:00:16.6]} 62...
Bd1 {[%clk 0:00:22.8]} 63. Rh2+ {[%clk 0:00:17.4]} 63... Kb3 {[%clk 0:00:20.6]}
64. Rh1 {[%clk 0:00:15.2]} 64... Bc2+ {[%clk 0:00:21.3]} 65. Kd4 {[%clk
0:00:15.9]} 65... a4 {[%clk 0:00:22.9]} 66. Rh3+ {[%clk 0:00:16.3]} 66... Kb2
{[%clk 0:00:24.2]} 67. Kc4 {[%clk 0:00:17.8]} 67... Bc5 {[%clk 0:00:22.6]} 68.
Kb5 {[%clk 0:00:09]} 68... a3 {[%clk 0:00:23.6]} 69. Rh4 {[%clk 0:00:05.9]}
69... a2 {[%clk 0:00:23.7]} 70. Ra4 {[%clk 0:00:06.5]} 70... Bxa4+ {[%clk
0:00:24.2]} 71. Ka6 {[%clk 0:00:07.9]} 71... a1=Q {[%clk 0:00:24.3]} 72. Kb7
{[%clk 0:00:09.6]} 72... Bd7 {[%clk 0:00:22.7]} 73. Kb8 {[%clk 0:00:07.6]} 73...
Kc1 {[%clk 0:00:17.8]} 0-1

[Event "*** Biggest EVER Titled Tuesday"]
[Site "Chess.com"]
[Date "2018.04.17"]
[Round "10"]
[White "FairChess_on_YouTube"]
[Black "Alexander_Moskalenko"]
[Result "0-1"]
[WhiteElo "2874"]
[BlackElo "2749"]
[TimeControl "180+2"]
[EndTime "15:26:09 PDT"]
[Termination "Alexander_Moskalenko won by resignation"]

1. d4 {[%clk 0:03:01.9]} 1... d5 {[%clk 0:02:44.2]} 2. c4 {[%clk 0:03:02.4]}
2... e6 {[%clk 0:02:44.6]} 3. Nc3 {[%clk 0:03:02.9]} 3... Nf6 {[%clk 0:02:35.6]}
4. cxd5 {[%clk 0:03:02.6]} 4... exd5 {[%clk 0:02:36.1]} 5. Bg5 {[%clk 0:03:03]}
5... c6 {[%clk 0:02:37.1]} 6. e3 {[%clk 0:03:04.3]} 6... Be7 {[%clk 0:02:38.2]}
7. Bd3 {[%clk 0:03:04.8]} 7... Nbd7 {[%clk 0:02:39.3]} 8. Nge2 {[%clk
0:03:05.2]} 8... h6 {[%clk 0:02:37.7]} 9. Bh4 {[%clk 0:03:06.2]} 9... Nh5 {[%clk
0:02:38.4]} 10. Bxe7 {[%clk 0:03:03.5]} 10... Qxe7 {[%clk 0:02:40.3]} 11. Qd2
{[%clk 0:02:57.9]} 11... Nb6 {[%clk 0:02:36.2]} 12. O-O-O {[%clk 0:02:57.2]}
12... Be6 {[%clk 0:02:33.4]} 13. Kb1 {[%clk 0:02:49]} 13... O-O-O {[%clk
0:02:32.8]} 14. Nc1 {[%clk 0:02:49.8]} 14... Kb8 {[%clk 0:02:32.8]} 15. Nb3
{[%clk 0:02:50.4]} 15... Nf6 {[%clk 0:02:32.4]} 16. f3 {[%clk 0:02:50.4]} 16...
Bc8 {[%clk 0:02:29]} 17. Rhe1 {[%clk 0:02:51]} 17... Rhe8 {[%clk 0:02:25.4]} 18.
Qf2 {[%clk 0:02:47.5]} 18... Qc7 {[%clk 0:02:24.4]} 19. g3 {[%clk 0:02:47.4]}
19... Re7 {[%clk 0:02:18.5]} 20. Rc1 {[%clk 0:02:47.8]} 20... Rde8 {[%clk
0:02:17.9]} 21. g4 {[%clk 0:02:45.3]} 21... Qd6 {[%clk 0:02:10.5]} 22. h3 {[%clk
0:02:45.3]} 22... Ka8 {[%clk 0:02:00.6]} 23. e4 {[%clk 0:02:44.6]} 23... dxe4
{[%clk 0:01:42.1]} 24. fxe4 {[%clk 0:02:46.5]} 24... Qd8 {[%clk 0:01:43.2]} 25.
Ka1 {[%clk 0:02:44.9]} 25... Be6 {[%clk 0:01:39.2]} 26. Nc5 {[%clk 0:02:45.5]}
26... Bc8 {[%clk 0:01:40.4]} 27. Bb1 {[%clk 0:02:44.5]} 27... Nfd7 {[%clk
0:01:39.8]} 28. Nb3 {[%clk 0:02:40.4]} 28... f6 {[%clk 0:01:40.7]} 29. Qf4
{[%clk 0:02:36.4]} 29... Nf8 {[%clk 0:01:40.6]} 30. Rcd1 {[%clk 0:02:35.9]}
30... Ne6 {[%clk 0:01:38.8]} 31. Qg3 {[%clk 0:02:34.7]} 31... Ng5 {[%clk
0:01:38.2]} 32. Nc5 {[%clk 0:02:27.9]} 32... Nd7 {[%clk 0:01:35.3]} 33. N3a4
{[%clk 0:02:16.2]} 33... Nxc5 {[%clk 0:01:34.7]} 34. dxc5 {[%clk 0:02:10]} 34...
Qa5 {[%clk 0:01:33.1]} 35. Qa3 {[%clk 0:02:10.6]} 35... Kb8 {[%clk 0:01:23.9]}
36. Qg3+ {[%clk 0:01:53.8]} 36... Qc7 {[%clk 0:01:24.5]} 37. Rd6 {[%clk
0:01:53.7]} 37... Nxe4 {[%clk 0:01:13.3]} 38. Rxe4 {[%clk 0:01:34.7]} 38... Rxe4
{[%clk 0:01:15.2]} 39. Bxe4 {[%clk 0:01:35.8]} 39... Rxe4 {[%clk 0:01:16.1]} 40.
b3 {[%clk 0:01:35.7]} 40... Re5 {[%clk 0:01:14.8]} 41. Qd3 {[%clk 0:01:25.9]}
41... Qe7 {[%clk 0:01:11]} 42. Kb2 {[%clk 0:01:13.2]} 42... Kc7 {[%clk
0:01:00.1]} 43. Qc3 {[%clk 0:01:11.3]} 43... Rxc5 {[%clk 0:00:57.1]} 44. Qxc5
{[%clk 0:01:12.2]} 44... Qxd6 {[%clk 0:00:58.3]} 45. Qxa7 {[%clk 0:01:13.7]}
45... Qd2+ {[%clk 0:00:53.9]} 46. Ka3 {[%clk 0:01:14.5]} 46... Qc1+ {[%clk
0:00:53.1]} 47. Kb4 {[%clk 0:01:13.3]} 47... Qf4+ {[%clk 0:00:44]} 48. Ka3
{[%clk 0:01:12.6]} 48... Qd6+ {[%clk 0:00:40.9]} 49. Kb2 {[%clk 0:01:13.5]}
49... Qb4 {[%clk 0:00:38.8]} 50. Qe3 {[%clk 0:01:03.2]} 50... b6 {[%clk
0:00:36.2]} 51. a3 {[%clk 0:01:03.1]} 51... Qb5 {[%clk 0:00:36.2]} 52. Qe7+
{[%clk 0:01:01.2]} 52... Bd7 {[%clk 0:00:37.4]} 53. Qxg7 {[%clk 0:00:53.8]}
53... Qe2+ {[%clk 0:00:36.1]} 54. Ka1 {[%clk 0:00:54.1]} 54... Qf1+ {[%clk
0:00:27.1]} 55. Ka2 {[%clk 0:00:54]} 55... Qxh3 {[%clk 0:00:28.7]} 56. Qxf6
{[%clk 0:00:47]} 56... Bxg4 {[%clk 0:00:27]} 57. Qd4 {[%clk 0:00:29.5]} 57...
Qh2+ {[%clk 0:00:23.7]} 58. Ka1 {[%clk 0:00:28.3]} 58... Qh1+ {[%clk 0:00:21.6]}
59. Ka2 {[%clk 0:00:28.5]} 59... Qg2+ {[%clk 0:00:23]} 60. Ka1 {[%clk
0:00:29.3]} 60... Qf1+ {[%clk 0:00:23.3]} 61. Kb2 {[%clk 0:00:19.7]} 61... Qe2+
{[%clk 0:00:23.4]} 62. Kc1 {[%clk 0:00:18.1]} 62... Qe1+ {[%clk 0:00:23.6]} 63.
Kb2 {[%clk 0:00:18.9]} 63... Qe2+ {[%clk 0:00:21.6]} 64. Kc1 {[%clk 0:00:19.9]}
64... c5 {[%clk 0:00:19.6]} 65. Qg7+ {[%clk 0:00:19.6]} 65... Bd7 {[%clk
0:00:20.8]} 66. Nc3 {[%clk 0:00:14.7]} 66... Qe3+ {[%clk 0:00:20.3]} 67. Kc2
{[%clk 0:00:14.7]} 67... Qe6 {[%clk 0:00:19.2]} 68. a4 {[%clk 0:00:13.5]} 68...
Kb7 {[%clk 0:00:20]} 69. Kb2 {[%clk 0:00:13.1]} 69... h5 {[%clk 0:00:20.8]} 70.
Qh7 {[%clk 0:00:12.3]} 70... Qf5 {[%clk 0:00:21.2]} 71. Qh6 {[%clk 0:00:12.1]}
71... Qe5 {[%clk 0:00:21.2]} 72. Qh7 {[%clk 0:00:08.9]} 72... Qd4 {[%clk
0:00:20.5]} 73. Ka3 {[%clk 0:00:08.1]} 73... h4 {[%clk 0:00:19]} 74. Ka2 {[%clk
0:00:04.8]} 74... h3 {[%clk 0:00:19.1]} 75. Nb5 {[%clk 0:00:05.9]} 75... Qd2+
{[%clk 0:00:19.7]} 76. Ka3 {[%clk 0:00:06.8]} 76... h2 {[%clk 0:00:15.8]} 77.
Qe4+ {[%clk 0:00:07.8]} 77... Bc6 {[%clk 0:00:17.1]} 78. Qe7+ {[%clk 0:00:08.6]}
78... Qd7 {[%clk 0:00:17.9]} 79. Nd6+ {[%clk 0:00:06.6]} 79... Kc7 {[%clk
0:00:15.7]} 80. Ne8+ {[%clk 0:00:07.8]} 80... Kb7 {[%clk 0:00:14.5]} 81. Nd6+
{[%clk 0:00:08.8]} 81... Ka7 {[%clk 0:00:15.9]} 82. Nc8+ {[%clk 0:00:04]} 82...
Kb8 {[%clk 0:00:16.9]} 83. Qe5+ {[%clk 0:00:04.9]} 83... Qc7 {[%clk 0:00:17.5]}
84. Nd6 {[%clk 0:00:04.5]} 84... h1=Q {[%clk 0:00:18.4]} 0-1

[Event "*** Biggest EVER Titled Tuesday"]
[Site "Chess.com"]
[Date "2018.04.17"]
[Round "10"]
[White "Vugar_Manafov"]
[Black "Kozok"]
[Result "1/2-1/2"]
[WhiteElo "2315"]
[BlackElo "2209"]
[TimeControl "180+2"]
[EndTime "15:26:10 PDT"]
[Termination "Game drawn by repetition"]

1. Nf3 {[%clk 0:03:01.9]} 1... d5 {[%clk 0:03:00.6]} 2. g3 {[%clk 0:03:02.6]}
2... Nf6 {[%clk 0:02:59.8]} 3. Bg2 {[%clk 0:03:03.8]} 3... Bf5 {[%clk
0:02:59.9]} 4. O-O {[%clk 0:03:04.6]} 4... c6 {[%clk 0:03:00.5]} 5. d3 {[%clk
0:03:04.6]} 5... h6 {[%clk 0:03:01.5]} 6. Nbd2 {[%clk 0:03:05.4]} 6... e6 {[%clk
0:03:02.1]} 7. c4 {[%clk 0:03:04.8]} 7... Nbd7 {[%clk 0:02:58.5]} 8. Rb1 {[%clk
0:03:05.6]} 8... a5 {[%clk 0:02:55.1]} 9. b3 {[%clk 0:03:06.5]} 9... Be7 {[%clk
0:02:55.4]} 10. Bb2 {[%clk 0:03:06.5]} 10... O-O {[%clk 0:02:53.6]} 11. Re1
{[%clk 0:03:05.6]} 11... Re8 {[%clk 0:02:54]} 12. Ne5 {[%clk 0:03:05.4]} 12...
Nxe5 {[%clk 0:02:53.4]} 13. Bxe5 {[%clk 0:03:07.3]} 13... Nd7 {[%clk 0:02:53.1]}
14. Ba1 {[%clk 0:03:04.1]} 14... Bf6 {[%clk 0:02:54.3]} 15. Bxf6 {[%clk
0:03:01.8]} 15... Qxf6 {[%clk 0:02:54.4]} 16. Qc2 {[%clk 0:02:57.3]} 16... Rec8
{[%clk 0:02:04.7]} 17. a3 {[%clk 0:02:53]} 17... b5 {[%clk 0:01:52.2]} 18. Qb2
{[%clk 0:02:47.7]} 18... Qe7 {[%clk 0:01:33.1]} 19. Rec1 {[%clk 0:02:45.4]}
19... Rab8 {[%clk 0:01:32.5]} 20. Qa2 {[%clk 0:02:43.1]} 20... b4 {[%clk
0:01:24.1]} 21. axb4 {[%clk 0:02:41.2]} 21... Qxb4 {[%clk 0:01:20.6]} 22. Ra1
{[%clk 0:02:39.7]} 22... Ra8 {[%clk 0:00:33.3]} 23. d4 {[%clk 0:02:30.7]} 23...
Nb6 {[%clk 0:00:24]} 24. c5 {[%clk 0:02:27.5]} 24... Nd7 {[%clk 0:00:24.7]} 25.
Qa4 {[%clk 0:02:28.2]} 25... Rcb8 {[%clk 0:00:25.3]} 26. Qxb4 {[%clk 0:02:28.5]}
26... Rxb4 {[%clk 0:00:27.2]} 27. e3 {[%clk 0:02:27.4]} 27... a4 {[%clk
0:00:26.8]} 28. Ra3 {[%clk 0:02:26.9]} 28... Rab8 {[%clk 0:00:21.5]} 29. bxa4
{[%clk 0:02:26.5]} 29... Rb2 {[%clk 0:00:22.9]} 30. Nf1 {[%clk 0:02:23]} 30...
Bd3 {[%clk 0:00:16.3]} 31. a5 {[%clk 0:02:22.3]} 31... Ba6 {[%clk 0:00:14.2]}
32. h3 {[%clk 0:02:20.6]} 32... Nf6 {[%clk 0:00:08.8]} 33. Rac3 {[%clk
0:02:11.2]} 33... Ra2 {[%clk 0:00:07.4]} 34. R3c2 {[%clk 0:02:09.9]} 34... Rxa5
{[%clk 0:00:08.5]} 35. Nd2 {[%clk 0:02:10.7]} 35... Bb5 {[%clk 0:00:06.1]} 36.
Rb2 {[%clk 0:02:11.3]} 36... Rba8 {[%clk 0:00:07.3]} 37. Rcb1 {[%clk 0:02:12.3]}
37... Ra3 {[%clk 0:00:07.6]} 38. Bf1 {[%clk 0:02:12.4]} 38... Bxf1 {[%clk
0:00:05.9]} 39. Kxf1 {[%clk 0:02:14.3]} 39... Ra1 {[%clk 0:00:05.6]} 40. Ke2
{[%clk 0:02:14]} 40... Rxb1 {[%clk 0:00:06.3]} 41. Nxb1 {[%clk 0:02:14.8]} 41...
Kf8 {[%clk 0:00:06.5]} 42. Nc3 {[%clk 0:02:14.5]} 42... Ke7 {[%clk 0:00:06.4]}
43. Rb6 {[%clk 0:02:14.7]} 43... Rc8 {[%clk 0:00:06.2]} 44. Rb7+ {[%clk
0:02:14.4]} 44... Nd7 {[%clk 0:00:07.1]} 45. Na4 {[%clk 0:02:15.4]} 45... Kd8
{[%clk 0:00:06.8]} 46. Kd3 {[%clk 0:02:05.4]} 46... Rc7 {[%clk 0:00:03.7]} 47.
Rb4 {[%clk 0:02:05.1]} 47... Ra7 {[%clk 0:00:04.2]} 48. g4 {[%clk 0:02:04.5]}
48... g5 {[%clk 0:00:04.8]} 49. f3 {[%clk 0:02:05]} 49... Kc7 {[%clk 0:00:06]}
50. e4 {[%clk 0:02:06.1]} 50... Nf6 {[%clk 0:00:06.3]} 51. e5 {[%clk 0:01:53]}
51... Ng8 {[%clk 0:00:05.8]} 52. Ke3 {[%clk 0:01:54.4]} 52... Ne7 {[%clk
0:00:06.6]} 53. f4 {[%clk 0:01:55.5]} 53... Ng6 {[%clk 0:00:07.9]} 54. f5 {[%clk
0:01:56.4]} 54... Nf4 {[%clk 0:00:07.8]} 55. f6 {[%clk 0:01:57.1]} 55... Nxh3
{[%clk 0:00:08.6]} 56. Nb6 {[%clk 0:01:48.2]} 56... Nf4 {[%clk 0:00:08.7]} 57.
Rb1 {[%clk 0:01:43]} 57... Ra3+ {[%clk 0:00:09.6]} 58. Kf2 {[%clk 0:01:42.9]}
58... Nd3+ {[%clk 0:00:09.8]} 59. Ke2 {[%clk 0:01:41.3]} 59... Nf4+ {[%clk
0:00:11]} 60. Kf2 {[%clk 0:01:42.1]} 60... Rd3 {[%clk 0:00:12]} 61. Na8+ {[%clk
0:01:35.4]} 61... Kc8 {[%clk 0:00:12.2]} 62. Rb6 {[%clk 0:01:36.8]} 62... Rxd4
{[%clk 0:00:11.8]} 63. Rxc6+ {[%clk 0:01:32.8]} 63... Kb7 {[%clk 0:00:13.2]} 64.
Rc7+ {[%clk 0:01:34.4]} 64... Kxa8 {[%clk 0:00:14.7]} 65. Rxf7 {[%clk
0:01:36.3]} 65... Ng6 {[%clk 0:00:12.5]} 66. c6 {[%clk 0:01:30.5]} 66... Kb8
{[%clk 0:00:12.4]} 67. Rb7+ {[%clk 0:01:25.8]} 67... Kc8 {[%clk 0:00:13.5]} 68.
Re7 {[%clk 0:01:06]} 68... Nxe5 {[%clk 0:00:08.8]} 69. Rxe6 {[%clk 0:01:04.4]}
69... Nxg4+ {[%clk 0:00:09.5]} 70. Kg3 {[%clk 0:01:03.3]} 70... Rf4 {[%clk
0:00:10.7]} 71. f7 {[%clk 0:01:02.7]} 71... Rxf7 {[%clk 0:00:06.2]} 72. Kxg4
{[%clk 0:01:04.6]} 72... d4 {[%clk 0:00:06.5]} 73. Rxh6 {[%clk 0:01:03.9]} 73...
Kc7 {[%clk 0:00:05.9]} 74. Kxg5 {[%clk 0:00:58.5]} 74... d3 {[%clk 0:00:06.3]}
75. Rh3 {[%clk 0:00:59.4]} 75... d2 {[%clk 0:00:06.8]} 76. Rd3 {[%clk
0:01:00.1]} 76... Rf2 {[%clk 0:00:08.2]} 77. Kg4 {[%clk 0:00:59.3]} 77... Kxc6
{[%clk 0:00:09.5]} 78. Kg3 {[%clk 0:00:59.8]} 78... Re2 {[%clk 0:00:09]} 79. Kf3
{[%clk 0:00:59]} 79... Rh2 {[%clk 0:00:10.2]} 80. Kg3 {[%clk 0:00:59]} 80... Re2
{[%clk 0:00:09.6]} 81. Kf3 {[%clk 0:00:59.9]} 81... Rh2 {[%clk 0:00:10.4]} 82.
Kg3 {[%clk 0:00:59.3]} 82... Re2 {[%clk 0:00:09.5]} 83. Kf3 {[%clk 0:01:00.1]}
83... Rh2 {[%clk 0:00:05.6]} 84. Kg3 {[%clk 0:01:00.9]} 84... Re2 {[%clk
0:00:06.5]} 85. Kf3 {[%clk 0:01:02]} 85... Rh2 {[%clk 0:00:07.2]} 86. Kg3 {[%clk
0:01:03.1]} 86... Re2 {[%clk 0:00:08.3]} 1/2-1/2